[Event "Titled Tuesday Blitz May 16 Early 2023"]
[White "caropawn10"]
[Black "KVAIDAN"]
[WhiteElo "2691"]
[BlackElo "2401"]
[Result "1-0"]
[Round "02"]
[TimeControl "180+2"]
[Date "2023.05.16"]
[WhiteClock "0:01:28"]
[BlackClock "0:00:32"]

1. e4 {[%clk 0:03:00]}  e5 {[%clk 0:02:59]} 2. Nc3 {[%clk 0:02:59]}  Nf6 {[%clk 0:02:57]} 3. g3 {[%clk 0:03:00]}  d5 {[%clk 0:02:54]} 4. exd5 {[%clk 0:03:00]}  Nxd5 {[%clk 0:02:46]} 5. Bg2 {[%clk 0:02:56]}  Nxc3 {[%clk 0:02:35]} 6. bxc3 {[%clk 0:02:57]}  Be7 {[%clk 0:02:35]} 7. Ne2 {[%clk 0:02:58]}  O-O {[%clk 0:02:33]} 8. O-O {[%clk 0:02:58]}  Nc6 {[%clk 0:02:27]} 9. d4 {[%clk 0:02:59]}  exd4 {[%clk 0:02:27]} 10. Nxd4 {[%clk 0:02:59]}  Bd7 {[%clk 0:02:26]} 11. Bf4 {[%clk 0:02:54]}  Rc8 {[%clk 0:02:12]} 12. Rb1 {[%clk 0:02:51]}  Nxd4 {[%clk 0:02:06]} 13. cxd4 {[%clk 0:02:52]}  b6 {[%clk 0:02:05]} 14. c4 {[%clk 0:02:49]}  Bf5 {[%clk 0:02:01]} 15. Rb3 {[%clk 0:02:49]}  Bf6 {[%clk 0:01:55]} 16. d5 {[%clk 0:02:46]}  Re8 {[%clk 0:01:27]} 17. h4 {[%clk 0:02:42]}  Be5 {[%clk 0:01:23]} 18. Bxe5 {[%clk 0:02:38]}  Rxe5 {[%clk 0:01:23]} 19. Qd4 {[%clk 0:02:39]}  Qf6 {[%clk 0:01:22]} 20. Rf3 {[%clk 0:02:37]}  h5 {[%clk 0:01:11]} 21. Bh3 {[%clk 0:02:15]}  Rce8 {[%clk 0:01:02]} 22. Kh2 {[%clk 0:02:09]}  Qg6 {[%clk 0:00:58]} 23. Qf4 {[%clk 0:01:45]}  Bxh3 {[%clk 0:00:57]} 24. Kxh3 {[%clk 0:01:46]}  Re4 {[%clk 0:00:56]} 25. Qxc7 {[%clk 0:01:44]}  Qg4+ {[%clk 0:00:54]} 26. Kg2 {[%clk 0:01:44]}  f5 {[%clk 0:00:50]} 27. d6 {[%clk 0:01:37]}  Rxc4 {[%clk 0:00:40]} 28. d7 {[%clk 0:01:32]}  Rf8 {[%clk 0:00:37]} 29. d8=Q {[%clk 0:01:31]}  f4 {[%clk 0:00:32]} 30. Qxc4+ {[%clk 0:01:28]} 1-0


[Site "https://www.chess.com"]

[Event "Titled Tuesday Blitz May 16 Early 2023"]
[White "Souleidis, Georgios"]
[Black "Gatterer, Florian"]
[WhiteFideId "4206827"]
[BlackFideId "811688"]
[WhiteElo "2401"]
[BlackElo "2221"]
[Result "1-0"]
[Round "02"]
[TimeControl "180+2"]
[Date "2023.05.16"]
[WhiteClock "0:01:49"]
[BlackClock "0:00:45"]

1. e4 {[%clk 0:02:57]}  c5 {[%clk 0:03:00]} 2. Be2 {[%clk 0:02:56]}  e6 {[%clk 0:02:57]} 3. d3 {[%clk 0:02:56]}  d5 {[%clk 0:02:57]} 4. f4 {[%clk 0:02:57]}  Bd6 {[%clk 0:02:55]} 5. Nf3 {[%clk 0:02:56]}  Ne7 {[%clk 0:02:55]} 6. O-O {[%clk 0:02:56]}  Nbc6 {[%clk 0:02:54]} 7. c3 {[%clk 0:02:56]}  d4 {[%clk 0:02:54]} 8. Nbd2 {[%clk 0:02:52]}  O-O {[%clk 0:02:50]} 9. Nc4 {[%clk 0:02:48]}  Bc7 {[%clk 0:02:46]} 10. a4 {[%clk 0:02:48]}  f5 {[%clk 0:02:41]} 11. e5 {[%clk 0:02:43]}  Nd5 {[%clk 0:02:34]} 12. cxd4 {[%clk 0:02:41]}  cxd4 {[%clk 0:02:26]} 13. Bd2 {[%clk 0:02:41]}  b6 {[%clk 0:02:24]} 14. Rc1 {[%clk 0:02:32]}  Bb7 {[%clk 0:02:06]} 15. Qe1 {[%clk 0:02:32]}  a5 {[%clk 0:02:01]} 16. Qf2 {[%clk 0:02:30]}  Ndb4 {[%clk 0:01:58]} 17. Na3 {[%clk 0:02:20]}  Ba6 {[%clk 0:01:50]} 18. Nb5 {[%clk 0:02:12]}  Bb8 {[%clk 0:01:36]} 19. Rc4 {[%clk 0:02:05]}  Qe7 {[%clk 0:01:20]} 20. Rfc1 {[%clk 0:02:03]}  Bxb5 {[%clk 0:01:04]} 21. axb5 {[%clk 0:02:02]}  Na7 {[%clk 0:01:03]} 22. Nxd4 {[%clk 0:02:01]}  Rd8 {[%clk 0:01:01]} 23. Bxb4 {[%clk 0:01:49]}  axb4 {[%clk 0:00:45]} 24. Bf3 {[%clk 0:01:49]} 1-0


[Site "https://www.chess.com"]

[Event "Titled Tuesday Blitz May 16 Early 2023"]
[White "Fikiet, Alex"]
[Black "Camilla_Lee"]
[WhiteFideId "2052717"]
[WhiteElo "2382"]
[BlackElo "2629"]
[Result "1-0"]
[Round "02"]
[TimeControl "180+2"]
[Date "2023.05.16"]
[WhiteClock "0:00:16"]
[BlackClock "0:00:00"]

1. e4 {[%clk 0:02:13]}  e5 {[%clk 0:02:59]} 2. Nf3 {[%clk 0:02:12]}  Nc6 {[%clk 0:02:58]} 3. Nc3 {[%clk 0:02:11]}  Nf6 {[%clk 0:02:57]} 4. a3 {[%clk 0:02:11]}  d5 {[%clk 0:02:31]} 5. exd5 {[%clk 0:02:00]}  Nd4 {[%clk 0:02:31]} 6. h3 {[%clk 0:01:46]}  Nxd5 {[%clk 0:02:22]} 7. Nxd5 {[%clk 0:01:26]}  Qxd5 {[%clk 0:02:21]} 8. Nxd4 {[%clk 0:01:25]}  exd4 {[%clk 0:02:21]} 9. Be2 {[%clk 0:01:25]}  c6 {[%clk 0:02:19]} 10. O-O {[%clk 0:01:24]}  Be6 {[%clk 0:02:17]} 11. Bf3 {[%clk 0:01:23]}  Qd6 {[%clk 0:02:16]} 12. b4 {[%clk 0:01:21]}  Be7 {[%clk 0:02:16]} 13. d3 {[%clk 0:01:15]}  O-O {[%clk 0:02:13]} 14. Re1 {[%clk 0:01:09]}  Bf6 {[%clk 0:02:13]} 15. Rb1 {[%clk 0:01:00]}  Bd5 {[%clk 0:02:11]} 16. b5 {[%clk 0:00:52]}  c5 {[%clk 0:02:05]} 17. Be4 {[%clk 0:00:49]}  Rfe8 {[%clk 0:02:04]} 18. Qf3 {[%clk 0:00:46]}  Bxe4 {[%clk 0:01:59]} 19. Rxe4 {[%clk 0:00:46]}  Rxe4 {[%clk 0:01:58]} 20. Qxe4 {[%clk 0:00:46]}  Qd7 {[%clk 0:01:58]} 21. Bd2 {[%clk 0:00:37]}  Re8 {[%clk 0:01:58]} 22. Qf3 {[%clk 0:00:36]}  Re7 {[%clk 0:01:44]} 23. a4 {[%clk 0:00:35]}  Qe8 {[%clk 0:01:02]} 24. Kf1 {[%clk 0:00:35]}  Be5 {[%clk 0:00:48]} 25. Re1 {[%clk 0:00:34]}  Bd6 {[%clk 0:00:45]} 26. Rxe7 {[%clk 0:00:31]}  Qxe7 {[%clk 0:00:46]} 27. Qe4 {[%clk 0:00:32]}  Qxe4 {[%clk 0:00:46]} 28. dxe4 {[%clk 0:00:32]}  c4 {[%clk 0:00:44]} 29. f4 {[%clk 0:00:32]}  f6 {[%clk 0:00:38]} 30. Ke2 {[%clk 0:00:31]}  Kf7 {[%clk 0:00:38]} 31. Kf3 {[%clk 0:00:29]}  g6 {[%clk 0:00:29]} 32. g4 {[%clk 0:00:28]}  Ke6 {[%clk 0:00:25]} 33. f5+ {[%clk 0:00:25]}  Kf7 {[%clk 0:00:25]} 34. h4 {[%clk 0:00:24]}  a6 {[%clk 0:00:23]} 35. bxa6 {[%clk 0:00:23]}  bxa6 {[%clk 0:00:24]} 36. g5 {[%clk 0:00:22]}  Be5 {[%clk 0:00:18]} 37. Kg4 {[%clk 0:00:20]}  Bc7 {[%clk 0:00:16]} 38. h5 {[%clk 0:00:20]}  gxf5+ {[%clk 0:00:12]} 39. Kxf5 {[%clk 0:00:19]}  fxg5 {[%clk 0:00:12]} 40. Kxg5 {[%clk 0:00:19]}  Ke6 {[%clk 0:00:08]} 41. Kh6 {[%clk 0:00:18]}  Ke5 {[%clk 0:00:09]} 42. Kxh7 {[%clk 0:00:19]}  Kxe4 {[%clk 0:00:09]} 43. Kg6 {[%clk 0:00:19]}  d3 {[%clk 0:00:03]} 44. cxd3+ {[%clk 0:00:18]}  Kxd3 {[%clk 0:00:04]} 45. Bg5 {[%clk 0:00:17]}  c3 {[%clk 0:00:04]} 46. h6 {[%clk 0:00:16]}  Be5 {[%clk 0:00:03]} 47. Kf5 {[%clk 0:00:17]}  Bd4 {[%clk 0:00:02]} 48. Ke6 {[%clk 0:00:17]}  c2 {[%clk 0:00:00]} 49. Bc1 {[%clk 0:00:16]} 1-0


[Site "https://www.chess.com"]

[Event "Titled Tuesday Blitz May 16 Early 2023"]
[White "Kononenko, Dmitry"]
[Black "Mohammed, Zozek Salah Mohammed"]
[WhiteFideId "14113538"]
[BlackFideId "4803361"]
[WhiteElo "2198"]
[BlackElo "2211"]
[Result "1-0"]
[Round "02"]
[TimeControl "180+2"]
[Date "2023.05.16"]
[WhiteClock "0:01:12"]
[BlackClock "0:00:00"]

1. e4 {[%clk 0:03:00]}  e6 {[%clk 0:00:34]} 2. g3 {[%clk 0:02:41]}  d5 {[%clk 0:00:33]} 3. Bg2 {[%clk 0:02:41]}  dxe4 {[%clk 0:00:33]} 4. Bxe4 {[%clk 0:02:42]}  Nf6 {[%clk 0:00:33]} 5. Bg2 {[%clk 0:02:43]}  Be7 {[%clk 0:00:33]} 6. Ne2 {[%clk 0:02:42]}  O-O {[%clk 0:00:33]} 7. d4 {[%clk 0:02:43]}  Nc6 {[%clk 0:00:31]} 8. O-O {[%clk 0:02:43]}  Bd7 {[%clk 0:00:30]} 9. c3 {[%clk 0:02:42]}  a6 {[%clk 0:00:30]} 10. Nd2 {[%clk 0:02:41]}  b5 {[%clk 0:00:30]} 11. Nf3 {[%clk 0:02:40]}  Rb8 {[%clk 0:00:30]} 12. a3 {[%clk 0:02:39]}  Na5 {[%clk 0:00:29]} 13. Ne5 {[%clk 0:02:37]}  Nc4 {[%clk 0:00:22]} 14. Nd3 {[%clk 0:02:34]}  Qe8 {[%clk 0:00:20]} 15. Re1 {[%clk 0:02:25]}  Bc6 {[%clk 0:00:20]} 16. b3 {[%clk 0:02:17]}  Bxg2 {[%clk 0:00:19]} 17. Kxg2 {[%clk 0:02:17]}  Nb6 {[%clk 0:00:20]} 18. Ne5 {[%clk 0:02:15]}  Nbd5 {[%clk 0:00:19]} 19. Qc2 {[%clk 0:02:13]}  c5 {[%clk 0:00:18]} 20. c4 {[%clk 0:02:01]}  bxc4 {[%clk 0:00:18]} 21. bxc4 {[%clk 0:02:01]}  Nb6 {[%clk 0:00:18]} 22. Bb2 {[%clk 0:02:00]}  Nfd7 {[%clk 0:00:16]} 23. Nc6 {[%clk 0:01:50]}  Rb7 {[%clk 0:00:14]} 24. d5 {[%clk 0:01:45]}  exd5 {[%clk 0:00:14]} 25. Nf4 {[%clk 0:01:45]}  Nf6 {[%clk 0:00:11]} 26. Bxf6 {[%clk 0:01:35]}  Qxc6 {[%clk 0:00:10]} 27. Bxe7 {[%clk 0:01:34]}  Re8 {[%clk 0:00:08]} 28. Bh4 {[%clk 0:01:13]}  Nxc4 {[%clk 0:00:08]} 29. Rxe8+ {[%clk 0:01:12]}  Qxe8 {[%clk 0:00:00]} 30. Nxd5 {[%clk 0:01:12]} 1-0


[Site "https://www.chess.com"]

[Event "Titled Tuesday Blitz May 16 Early 2023"]
[White "Koutsin, Sergey"]
[Black "hakanazeri2"]
[WhiteFideId "14101483"]
[WhiteElo "2381"]
[BlackElo "2611"]
[Result "0-1"]
[Round "02"]
[TimeControl "180+2"]
[Date "2023.05.16"]
[WhiteClock "0:00:17"]
[BlackClock "0:01:19"]

1. d4 {[%clk 0:03:00]}  Nf6 {[%clk 0:02:59]} 2. c4 {[%clk 0:03:01]}  e6 {[%clk 0:02:59]} 3. Nf3 {[%clk 0:03:01]}  d5 {[%clk 0:02:58]} 4. Nc3 {[%clk 0:03:01]}  Bb4 {[%clk 0:02:58]} 5. Bg5 {[%clk 0:03:00]}  h6 {[%clk 0:02:57]} 6. Bxf6 {[%clk 0:03:00]}  Qxf6 {[%clk 0:02:57]} 7. Qa4+ {[%clk 0:02:59]}  Nc6 {[%clk 0:02:57]} 8. cxd5 {[%clk 0:03:00]}  exd5 {[%clk 0:02:57]} 9. e3 {[%clk 0:03:01]}  O-O {[%clk 0:02:57]} 10. Be2 {[%clk 0:03:01]}  Rd8 {[%clk 0:02:53]} 11. Qb3 {[%clk 0:03:00]}  Be6 {[%clk 0:02:50]} 12. a3 {[%clk 0:02:59]}  Bxc3+ {[%clk 0:02:50]} 13. Qxc3 {[%clk 0:02:59]}  Rac8 {[%clk 0:02:47]} 14. b4 {[%clk 0:02:58]}  Ne7 {[%clk 0:02:47]} 15. O-O {[%clk 0:02:57]}  Nf5 {[%clk 0:02:47]} 16. Qc5 {[%clk 0:02:50]}  b6 {[%clk 0:02:46]} 17. Qc6 {[%clk 0:02:49]}  Nd6 {[%clk 0:02:41]} 18. Ne5 {[%clk 0:02:47]}  Qe7 {[%clk 0:02:37]} 19. Qc2 {[%clk 0:02:40]}  Bf5 {[%clk 0:02:35]} 20. Qb3 {[%clk 0:02:34]}  c5 {[%clk 0:02:31]} 21. bxc5 {[%clk 0:02:32]}  bxc5 {[%clk 0:02:32]} 22. dxc5 {[%clk 0:02:01]}  Qxe5 {[%clk 0:02:28]} 23. cxd6 {[%clk 0:01:59]}  Rxd6 {[%clk 0:02:29]} 24. Rac1 {[%clk 0:01:36]}  Rxc1 {[%clk 0:02:17]} 25. Rxc1 {[%clk 0:01:36]}  d4 {[%clk 0:02:17]} 26. Bc4 {[%clk 0:01:05]}  dxe3 {[%clk 0:01:20]} 27. Bxf7+ {[%clk 0:01:03]}  Kf8 {[%clk 0:01:19]} 28. fxe3 {[%clk 0:00:17]}  Rd3 {[%clk 0:01:19]} 0-1


[Site "https://www.chess.com"]

[Event "Titled Tuesday Blitz May 16 Early 2023"]
[White "Goswami, Vedant"]
[Black "Akash G"]
[WhiteFideId "5003725"]
[BlackFideId "5040299"]
[WhiteElo "2011"]
[BlackElo "2395"]
[Result "0-1"]
[Round "02"]
[TimeControl "180+2"]
[Date "2023.05.16"]
[WhiteClock "0:00:00"]
[BlackClock "0:00:24"]

1. b3 {[%clk 0:03:00]}  g6 {[%clk 0:02:57]} 2. Bb2 {[%clk 0:02:59]}  Nf6 {[%clk 0:02:58]} 3. c4 {[%clk 0:02:58]}  Bg7 {[%clk 0:02:58]} 4. g3 {[%clk 0:02:57]}  d6 {[%clk 0:02:57]} 5. d4 {[%clk 0:02:54]}  e5 {[%clk 0:02:55]} 6. dxe5 {[%clk 0:02:53]}  Ng4 {[%clk 0:02:55]} 7. Bg2 {[%clk 0:02:51]}  O-O {[%clk 0:02:53]} 8. Nf3 {[%clk 0:02:49]}  Nc6 {[%clk 0:02:52]} 9. O-O {[%clk 0:02:48]}  Ngxe5 {[%clk 0:02:42]} 10. Nxe5 {[%clk 0:02:45]}  Nxe5 {[%clk 0:02:43]} 11. Qd2 {[%clk 0:02:38]}  h5 {[%clk 0:02:42]} 12. Nc3 {[%clk 0:02:35]}  h4 {[%clk 0:02:39]} 13. Rad1 {[%clk 0:02:31]}  Qd7 {[%clk 0:02:12]} 14. Nd5 {[%clk 0:02:26]}  c6 {[%clk 0:02:02]} 15. Ne3 {[%clk 0:02:17]}  Rd8 {[%clk 0:02:02]} 16. Ba3 {[%clk 0:01:28]}  Qe8 {[%clk 0:01:47]} 17. Qc2 {[%clk 0:01:21]}  Ng4 {[%clk 0:01:40]} 18. Nxg4 {[%clk 0:00:46]}  Bxg4 {[%clk 0:01:41]} 19. Bf3 {[%clk 0:00:46]}  Bf5 {[%clk 0:01:31]} 20. e4 {[%clk 0:00:42]}  Bh3 {[%clk 0:01:30]} 21. Rfe1 {[%clk 0:00:36]}  Qe5 {[%clk 0:01:24]} 22. Bc1 {[%clk 0:00:29]}  Qf6 {[%clk 0:01:12]} 23. Bg2 {[%clk 0:00:26]}  Bxg2 {[%clk 0:01:11]} 24. Kxg2 {[%clk 0:00:26]}  Re8 {[%clk 0:01:05]} 25. f3 {[%clk 0:00:25]}  Re6 {[%clk 0:01:00]} 26. Re2 {[%clk 0:00:19]}  Rae8 {[%clk 0:01:00]} 27. Bb2 {[%clk 0:00:18]}  Qg5 {[%clk 0:00:56]} 28. Bxg7 {[%clk 0:00:18]}  Kxg7 {[%clk 0:00:57]} 29. Qd2 {[%clk 0:00:17]}  Qh5 {[%clk 0:00:48]} 30. Qf4 {[%clk 0:00:16]}  h3+ {[%clk 0:00:45]} 31. Kf2 {[%clk 0:00:15]}  Rf6 {[%clk 0:00:45]} 32. Qe3 {[%clk 0:00:14]}  Re5 {[%clk 0:00:36]} 33. Red2 {[%clk 0:00:14]}  Ree6 {[%clk 0:00:30]} 34. Rd3 {[%clk 0:00:12]}  g5 {[%clk 0:00:28]} 35. R1d2 {[%clk 0:00:11]}  Qg6 {[%clk 0:00:27]} 36. Qd4 {[%clk 0:00:10]}  Rxe4 {[%clk 0:00:25]} 37. Qxe4 {[%clk 0:00:00]}  Qxe4 {[%clk 0:00:24]} 0-1


[Site "https://www.chess.com"]

[Event "Titled Tuesday Blitz May 16 Early 2023"]
[White "Ramirez Vido, Robert Yorisan"]
[Black "Iskusnyh, Sergei"]
[WhiteFideId "3513823"]
[BlackFideId "4120027"]
[WhiteElo "2366"]
[BlackElo "2492"]
[Result "0-1"]
[Round "02"]
[TimeControl "180+2"]
[Date "2023.05.16"]
[WhiteClock "0:00:00"]
[BlackClock "0:00:14"]

1. f4 {[%clk 0:03:00]}  d5 {[%clk 0:02:56]} 2. Nf3 {[%clk 0:03:00]}  g6 {[%clk 0:02:54]} 3. g3 {[%clk 0:03:01]}  Bg7 {[%clk 0:02:53]} 4. Bg2 {[%clk 0:03:01]}  c6 {[%clk 0:02:51]} 5. d3 {[%clk 0:03:02]}  Nh6 {[%clk 0:02:47]} 6. O-O {[%clk 0:03:01]}  Qb6+ {[%clk 0:02:45]} 7. d4 {[%clk 0:02:47]}  Nd7 {[%clk 0:02:41]} 8. c3 {[%clk 0:02:42]}  Nf6 {[%clk 0:02:39]} 9. a4 {[%clk 0:02:33]}  c5 {[%clk 0:02:23]} 10. a5 {[%clk 0:02:29]}  Qc7 {[%clk 0:02:22]} 11. Na3 {[%clk 0:02:25]}  Qxa5 {[%clk 0:01:57]} 12. Ne5 {[%clk 0:02:25]}  cxd4 {[%clk 0:01:40]} 13. Qxd4 {[%clk 0:02:06]}  Nf5 {[%clk 0:01:38]} 14. Qd3 {[%clk 0:01:51]}  O-O {[%clk 0:01:35]} 15. Be3 {[%clk 0:01:33]}  Nxe3 {[%clk 0:01:31]} 16. Qxe3 {[%clk 0:01:33]}  a6 {[%clk 0:01:09]} 17. Nac4 {[%clk 0:01:26]}  Qc7 {[%clk 0:01:04]} 18. Nb6 {[%clk 0:01:25]}  Rb8 {[%clk 0:01:04]} 19. Nxd5 {[%clk 0:01:23]}  Nxd5 {[%clk 0:01:03]} 20. Bxd5 {[%clk 0:01:24]}  Bh3 {[%clk 0:00:55]} 21. Rfd1 {[%clk 0:01:06]}  e6 {[%clk 0:00:55]} 22. Bf3 {[%clk 0:01:00]}  Rfd8 {[%clk 0:00:52]} 23. g4 {[%clk 0:00:52]}  Bxe5 {[%clk 0:00:51]} 24. fxe5 {[%clk 0:00:51]}  Qe7 {[%clk 0:00:44]} 25. Rd3 {[%clk 0:00:22]}  Qh4 {[%clk 0:00:26]} 26. Qf4 {[%clk 0:00:13]}  h5 {[%clk 0:00:23]} 27. Qf6 {[%clk 0:00:02]}  Qxf6 {[%clk 0:00:22]} 28. exf6 {[%clk 0:00:03]}  hxg4 {[%clk 0:00:19]} 29. Be4 {[%clk 0:00:02]}  Rxd3 {[%clk 0:00:17]} 30. exd3 {[%clk 0:00:01]}  Kf8 {[%clk 0:00:15]} 31. Kf2 {[%clk 0:00:00]}  Ke8 {[%clk 0:00:14]} 0-1


[Site "https://www.chess.com"]

[Event "Titled Tuesday Blitz May 16 Early 2023"]
[White "Hinds, Nathan"]
[Black "Sharapov, Evgeny"]
[WhiteFideId "7400730"]
[BlackFideId "14103133"]
[WhiteElo "2001"]
[BlackElo "2367"]
[Result "1/2-1/2"]
[Round "02"]
[TimeControl "180+2"]
[Date "2023.05.16"]
[WhiteClock "0:00:11"]
[BlackClock "0:00:27"]

1. Nf3 {[%clk 0:03:00]}  c5 {[%clk 0:02:59]} 2. d4 {[%clk 0:02:55]}  cxd4 {[%clk 0:02:59]} 3. Nxd4 {[%clk 0:02:55]}  d5 {[%clk 0:02:58]} 4. Nf3 {[%clk 0:02:54]}  Nc6 {[%clk 0:02:58]} 5. c4 {[%clk 0:02:29]}  Nf6 {[%clk 0:02:54]} 6. cxd5 {[%clk 0:02:29]}  Qxd5 {[%clk 0:02:54]} 7. Nc3 {[%clk 0:02:26]}  Qxd1+ {[%clk 0:02:53]} 8. Nxd1 {[%clk 0:02:25]}  Nb4 {[%clk 0:02:46]} 9. Nd4 {[%clk 0:02:13]}  e5 {[%clk 0:02:40]} 10. a3 {[%clk 0:02:10]}  exd4 {[%clk 0:02:39]} 11. axb4 {[%clk 0:02:09]}  Bxb4+ {[%clk 0:02:39]} 12. Bd2 {[%clk 0:02:10]}  Bxd2+ {[%clk 0:02:39]} 13. Kxd2 {[%clk 0:02:11]}  O-O {[%clk 0:02:38]} 14. g3 {[%clk 0:02:02]}  Bf5 {[%clk 0:02:31]} 15. Bg2 {[%clk 0:02:03]}  Be4 {[%clk 0:02:30]} 16. Bxe4 {[%clk 0:02:01]}  Nxe4+ {[%clk 0:02:30]} 17. Ke1 {[%clk 0:02:00]}  Rfc8 {[%clk 0:02:29]} 18. f3 {[%clk 0:02:00]}  Nd6 {[%clk 0:02:23]} 19. Nf2 {[%clk 0:01:58]}  Nc4 {[%clk 0:02:20]} 20. Nd3 {[%clk 0:01:57]}  Ne3 {[%clk 0:02:20]} 21. Kf2 {[%clk 0:01:56]}  Rc2 {[%clk 0:02:18]} 22. Rhc1 {[%clk 0:01:55]}  Kf8 {[%clk 0:01:59]} 23. Rxc2 {[%clk 0:01:48]}  Nxc2 {[%clk 0:01:59]} 24. Rc1 {[%clk 0:01:49]}  Ne3 {[%clk 0:01:56]} 25. Rc7 {[%clk 0:01:50]}  b6 {[%clk 0:01:52]} 26. Rd7 {[%clk 0:01:31]}  Nc2 {[%clk 0:01:42]} 27. Ne1 {[%clk 0:01:20]}  Ke8 {[%clk 0:01:33]} 28. Rd5 {[%clk 0:01:10]}  Nxe1 {[%clk 0:01:32]} 29. Kxe1 {[%clk 0:00:48]}  Rd8 {[%clk 0:01:31]} 30. Re5+ {[%clk 0:00:46]}  Kd7 {[%clk 0:01:30]} 31. Kd2 {[%clk 0:00:47]}  Kd6 {[%clk 0:01:28]} 32. Re4 {[%clk 0:00:46]}  Kc6 {[%clk 0:01:16]} 33. Kd3 {[%clk 0:00:44]}  Rd7 {[%clk 0:01:16]} 34. Rxd4 {[%clk 0:00:39]}  Rxd4+ {[%clk 0:01:16]} 35. Kxd4 {[%clk 0:00:40]}  a5 {[%clk 0:01:15]} 36. e4 {[%clk 0:00:31]}  f6 {[%clk 0:01:05]} 37. f4 {[%clk 0:00:29]}  h5 {[%clk 0:01:01]} 38. h3 {[%clk 0:00:27]}  a4 {[%clk 0:00:57]} 39. g4 {[%clk 0:00:26]}  h4 {[%clk 0:00:57]} 40. Kc4 {[%clk 0:00:17]}  g5 {[%clk 0:00:46]} 41. fxg5 {[%clk 0:00:13]}  fxg5 {[%clk 0:00:27]} 42. Kb4 {[%clk 0:00:11]} 1/2-1/2


[Site "https://www.chess.com"]

[Event "Titled Tuesday Blitz May 16 Early 2023"]
[White "Weishaeutel, Moritz"]
[Black "Topalov, Aleksandar"]
[WhiteFideId "12967300"]
[BlackFideId "925659"]
[WhiteElo "2301"]
[BlackElo "2151"]
[Result "1-0"]
[Round "02"]
[TimeControl "180+2"]
[Date "2023.05.16"]
[WhiteClock "0:00:10"]
[BlackClock "0:00:08"]

1. e4 {[%clk 0:03:00]}  e6 {[%clk 0:02:58]} 2. d4 {[%clk 0:03:00]}  d5 {[%clk 0:02:58]} 3. exd5 {[%clk 0:03:01]}  exd5 {[%clk 0:02:58]} 4. Nf3 {[%clk 0:03:02]}  Bf5 {[%clk 0:02:53]} 5. Bd3 {[%clk 0:03:00]}  Bxd3 {[%clk 0:02:53]} 6. Qxd3 {[%clk 0:03:01]}  c6 {[%clk 0:02:49]} 7. O-O {[%clk 0:03:00]}  Bd6 {[%clk 0:02:45]} 8. Re1+ {[%clk 0:02:09]}  Ne7 {[%clk 0:02:45]} 9. Bg5 {[%clk 0:02:10]}  O-O {[%clk 0:02:35]} 10. c4 {[%clk 0:02:10]}  f6 {[%clk 0:02:32]} 11. Bh4 {[%clk 0:02:05]}  Ng6 {[%clk 0:02:09]} 12. cxd5 {[%clk 0:01:52]}  cxd5 {[%clk 0:02:09]} 13. Bg3 {[%clk 0:01:49]}  Nc6 {[%clk 0:02:03]} 14. Qb3 {[%clk 0:01:42]}  Bxg3 {[%clk 0:01:58]} 15. hxg3 {[%clk 0:01:42]}  Qd7 {[%clk 0:01:58]} 16. Nc3 {[%clk 0:01:42]}  Rad8 {[%clk 0:01:58]} 17. Re3 {[%clk 0:01:33]}  Na5 {[%clk 0:01:55]} 18. Qb4 {[%clk 0:01:26]}  Nc4 {[%clk 0:01:51]} 19. Re2 {[%clk 0:01:25]}  Rfe8 {[%clk 0:01:42]} 20. Rae1 {[%clk 0:01:26]}  Rxe2 {[%clk 0:01:41]} 21. Rxe2 {[%clk 0:01:27]}  a6 {[%clk 0:01:24]} 22. Nh4 {[%clk 0:01:11]}  a5 {[%clk 0:01:10]} 23. Qb3 {[%clk 0:01:04]}  Kf7 {[%clk 0:00:58]} 24. Nxg6 {[%clk 0:00:54]}  hxg6 {[%clk 0:00:58]} 25. Rc2 {[%clk 0:00:46]}  Rc8 {[%clk 0:00:36]} 26. Na4 {[%clk 0:00:46]}  b5 {[%clk 0:00:26]} 27. Nc5 {[%clk 0:00:46]}  Qe8 {[%clk 0:00:22]} 28. Rc1 {[%clk 0:00:35]}  b4 {[%clk 0:00:18]} 29. Qf3 {[%clk 0:00:33]}  Rd8 {[%clk 0:00:15]} 30. b3 {[%clk 0:00:27]}  Nd2 {[%clk 0:00:15]} 31. Qd3 {[%clk 0:00:24]}  Ne4 {[%clk 0:00:13]} 32. Re1 {[%clk 0:00:23]}  f5 {[%clk 0:00:13]} 33. f3 {[%clk 0:00:21]}  Nxg3 {[%clk 0:00:12]} 34. Rxe8 {[%clk 0:00:21]}  Rxe8 {[%clk 0:00:11]} 35. Qb5 {[%clk 0:00:13]}  f4 {[%clk 0:00:10]} 36. Qd7+ {[%clk 0:00:12]}  Re7 {[%clk 0:00:10]} 37. Qxd5+ {[%clk 0:00:11]}  Ke8 {[%clk 0:00:08]} 38. Qg8# {[%clk 0:00:10]} 1-0


[Site "https://www.chess.com"]